bitfinex/quotes_BTCUSD_20230118
["timestamp","ask_amount","ask_price","bid_price","bid_amount"]
[1674038676558,0.311464,21196.0,21194.0,0.488827]
[1674038676822,0.329548,21195.0,21194.0,0.488827]
[1674038677087,0.66513819,21197.0,21194.0,0.471827]
[1674038677361,0.008,21195.0,21194.0,0.488827]
[1674038677620,0.66513819,21197.0,21194.0,0.471827]
[1674038677872,0.008,21196.0,21194.0,0.488827]
[1674038678139,0.66513819,21197.0,21194.0,0.471827]
[1674038678396,0.67313819,21197.0,21194.0,0.488827]
[1674038678682,0.310102,21196.0,21194.0,0.488827]
[1674038678937,0.316994,21195.0,21194.0,0.488827]
[1674038679191,0.67313819,21197.0,21194.0,0.488827]
[1674038679192,0.34837926,21196.0,21194.0,0.488827]
[1674038679445,0.67313819,21197.0,21194.0,0.488827]
[1674038679976,0.325472,21196.0,21194.0,0.471827]
[1674038680208,0.008,21196.0,21194.0,0.488827]
[1674038680453,0.66513819,21197.0,21194.0,0.471827]
[1674038680737,0.337981,21196.0,21194.0,0.471827]
[1674038680987,0.66513819,21197.0,21194.0,0.471827]
[1674038681288,0.008,21196.0,21194.0,0.471827]
[1674038681754,0.330502,21195.0,21194.0,0.488827]
[1674038682260,0.008,21196.0,21194.0,0.488827]
[1674038682778,0.66513819,21197.0,21194.0,0.471827]
[1674038683039,0.318229,21196.0,21194.0,1.13638395]
[1674038683349,0.70713819,21197.0,21194.0,0.945658]
[1674038683597,0.31675893,21197.0,21194.0,0.943658]
[1674038683841,0.31675893,21197.0,21194.0,0.945658]
[1674038683842,0.042,21196.0,21194.0,0.945658]
[1674038684368,0.31675893,21197.0,21194.0,0.943658]
[1674038684630,0.31675893,21197.0,21194.0,0.945658]
[1674038684883,0.35875893,21197.0,21194.0,0.943658]
[1674038685161,0.35875893,21197.0,21194.0,0.945658]
[1674038685417,0.31675893,21197.0,21194.0,0.943658]
[1674038686503,0.35875893,21197.0,21194.0,0.945658]
[1674038687482,0.04193031,21197.0,21195.0,0.31743908]
[1674038687731,0.04193031,21197.0,21196.0,0.798216]
[1674038687987,0.04193031,21197.0,21196.0,0.771787]
[1674038688247,0.04193031,21197.0,21196.0,0.471787]
[1674038688744,0.04193031,21197.0,21196.0,0.771787]
[1674038689045,0.04193031,21197.0,21195.0,0.48922708]
[1674038689266,0.04193031,21197.0,21195.0,0.96104008]
[1674038689510,0.074,21197.0,21196.0,0.002]
[1674038689768,0.074,21197.0,21195.0,0.96104008]
[1674038689769,1.44946089,21199.0,21195.0,0.01743908]
[1674038690033,0.29890461,21197.0,21195.0,0.002]
[1674038690351,0.318734,21196.0,21194.0,0.471811]
[1674038690544,0.321034,21195.0,21194.0,0.471811]
[1674038691051,0.64728387,21197.0,21195.0,0.002]
[1674038691306,0.29890461,21197.0,21194.0,0.943642]
[1674038691598,0.320464,21196.0,21194.0,0.943642]
[1674038691834,0.321758,21195.0,21194.0,0.943642]
[1674038692091,0.64728387,21197.0,21194.0,0.943642]
[1674038692623,0.042,21195.0,21194.0,0.945642]
[1674038692909,0.64728387,21197.0,21194.0,0.943642]
[1674038693173,0.34090461,21197.0,21194.0,0.945642]
[1674038693429,0.321839,21196.0,21194.0,0.943642]
[1674038693698,0.042,21195.0,21194.0,0.945642]
[1674038693964,0.64728387,21197.0,21194.0,0.943642]
[1674038694248,0.34090461,21197.0,21194.0,0.945642]
[1674038694534,0.29890461,21197.0,21194.0,0.943642]
[1674038694794,0.337104,21196.0,21194.0,0.943642]
[1674038695056,0.323057,21195.0,21194.0,0.943642]
[1674038695316,0.64728387,21197.0,21194.0,1.243642]
[1674038695631,0.042,21195.0,21194.0,0.945642]
[1674038695885,0.042,21195.0,21194.0,1.245642]
[1674038696138,0.042,21195.0,21194.0,0.945642]
[1674038696388,0.64728387,21197.0,21194.0,0.471811]
[1674038696646,0.68928387,21197.0,21194.0,0.473811]
[1674038696928,0.318528,21196.0,21194.0,0.471811]
[1674038697187,0.042,21195.0,21194.0,0.473811]
[1674038697456,0.64728387,21197.0,21194.0,0.471811]
[1674038697706,0.68928387,21197.0,21194.0,0.473811]
[1674038697954,0.324353,21196.0,21194.0,0.473811]
[1674038698280,0.68928387,21197.0,21194.0,0.945642]
[1674038698534,0.29890461,21197.0,21194.0,0.943642]
[1674038698776,0.042,21196.0,21195.0,0.3]
[1674038699031,0.042,21196.0,21195.0,0.943601]
[1674038699279,0.042,21196.0,21195.0,0.471793]
[1674038699556,0.29890461,21197.0,21195.0,0.471793]
[1674038699821,0.34090461,21197.0,21195.0,0.471793]
[1674038700116,0.32663,21196.0,21195.0,0.471793]
[1674038700611,0.29890461,21197.0,21195.0,0.471793]
[1674038701361,0.314078,21196.0,21195.0,0.471793]
[1674038701616,0.29890461,21197.0,21195.0,0.471793]
[1674038701617,0.37290461,21197.0,21195.0,0.473793]
[1674038702202,0.311835,21196.0,21195.0,0.471793]
[1674038702352,0.29890461,21197.0,21195.0,0.471793]
[1674038702595,0.389743,21196.0,21195.0,0.473793]
[1674038702853,0.074,21196.0,21195.0,0.473793]
[1674038703074,0.398357,21196.0,21195.0,0.473793]
[1674038703340,0.29890461,21197.0,21195.0,0.471793]
[1674038703614,0.37290461,21197.0,21195.0,0.473793]
[1674038704139,0.316607,21196.0,21195.0,0.473793]
[1674038704399,0.316607,21196.0,21194.0,0.471811]
[1674038704658,0.320022,21195.0,21194.0,0.471811]
[1674038704927,0.074,21196.0,21194.0,0.471811]
[1674038705456,0.318596,21195.0,21194.0,0.471811]
[1674038705724,0.042,21195.0,21194.0,0.473811]
[1674038706043,0.64728387,21197.0,21194.0,0.471811]
[1674038706272,0.042,21196.0,21194.0,0.473811]
[1674038706535,0.64728387,21197.0,21194.0,0.943642]
[1674038706796,0.29890461,21197.0,21194.0,0.943642]
[1674038707050,0.313561,21196.0,21194.0,0.471811]
[1674038707339,0.332742,21195.0,21194.0,0.471811]
[1674038707585,0.042,21195.0,21194.0,0.471811]
[1674038707847,0.64728387,21197.0,21194.0,0.473811]
[1674038708107,0.34090461,21197.0,21193.0,0.58494616]
[1674038708367,0.318862,21196.0,21193.0,1.05679916]
[1674038708665,0.310189,21195.0,21193.0,0.943687]
[1674038708893,0.042,21195.0,21193.0,0.943687]
[1674038709152,0.042,21195.0,21193.0,0.959687]
[1674038709661,0.042,21195.0,21194.0,0.3]
[1674038710182,0.042,21195.0,21194.0,1.243662]
[1674038710703,0.29890461,21197.0,21194.0,1.243662]
[1674038710974,0.005,21195.0,21194.0,1.243662]
[1674038711229,0.64728387,21197.0,21194.0,1.243662]
[1674038711510,0.042,21195.0,21194.0,0.945662]
[1674038711751,0.65844038,21195.0,21194.0,0.002]
[1674038712034,0.66271138,21195.0,21194.0,0.002]
[1674038712291,0.34086638,21195.0,21194.0,0.002]
[1674038714154,0.66167038,21195.0,21194.0,0.002]
[1674038714674,0.64806938,21195.0,21194.0,0.002]
[1674038715275,0.64565038,21195.0,21194.0,0.002]
[1674038715500,0.64565038,21195.0,21194.0,0.945662]
[1674038715786,0.34086638,21195.0,21194.0,1.245662]
[1674038716063,0.34086638,21195.0,21194.0,0.773831]
[1674038716835,0.34086638,21195.0,21194.0,0.473831]
[1674038718467,0.042,21195.0,21194.0,0.473831]
[1674038720051,0.042,21195.0,21194.0,0.773831]
[1674038721639,0.042,21195.0,21194.0,0.473831]
[1674038721997,0.042,21195.0,21194.0,0.773831]
[1674038722145,0.042,21195.0,21194.0,0.473831]
[1674038722427,0.042,21195.0,21194.0,0.773831]
[1674038723691,0.042,21195.0,21194.0,1.66822214]
[1674038723948,0.042,21195.0,21194.0,1.37519771]
[1674038724204,0.042,21195.0,21194.0,1.66804899]
[1674038725479,0.042,21195.0,21194.0,1.54465297]
[1674038725787,0.042,21195.0,21194.0,1.76705297]
[1674038726012,0.042,21195.0,21194.0,2.16349131]
[1674038727063,0.04189907,21195.0,21194.0,2.44535272]
[1674038727266,0.04189907,21195.0,21194.0,2.4453253]
[1674038727523,0.04189907,21195.0,21194.0,2.16346389]
[1674038727775,0.04189907,21195.0,21194.0,2.4453253]
[1674038728040,0.04189907,21195.0,21194.0,2.33049972]
[1674038728303,0.04189907,21195.0,21194.0,2.04863831]
[1674038728567,0.03499952,21195.0,21194.0,2.05713831]
[1674038729674,0.19,21199.0,21194.0,2.33771989]
[1674038729873,0.006,21195.0,21194.0,1.91296713]
[1674038730135,0.006,21195.0,21194.0,2.36437441]
[1674038730912,0.006,21195.0,21194.0,2.08179283]
[1674038731445,0.19,21199.0,21194.0,2.05379283]
[1674038731696,0.19,21199.0,21197.0,0.22347016]
[1674038731959,0.1834,21199.0,21198.0,1.564731]
[1674038732254,0.1828,21199.0,21198.0,1.676131]
[1674038732749,0.1768,21199.0,21198.0,1.676131]
[1674038733306,0.1768,21199.0,21198.0,1.679131]
[1674038733307,0.2168,21199.0,21198.0,1.679131]
[1674038733823,0.2168,21199.0,21198.0,1.669435]
[1674038734088,0.2122,21199.0,21198.0,1.669435]
[1674038734350,0.04,21199.0,21198.0,1.669435]
[1674038734608,0.04,21199.0,21198.0,1.780835]
[1674038735699,0.0354,21199.0,21198.0,1.780835]
[1674038737310,0.0354,21199.0,21198.0,1.480835]
[1674038737645,0.0354,21199.0,21198.0,0.946484]
[1674038738903,0.0354,21199.0,21198.0,1.246484]
[1674038739141,0.0354,21199.0,21198.0,0.946484]
[1674038739404,0.0354,21199.0,21198.0,1.246484]
[1674038739905,0.0354,21199.0,21198.0,1.04554796]
[1674038740210,0.0354,21199.0,21198.0,0.74554796]
[1674038740991,0.0354,21199.0,21198.0,1.04554796]
[1674038742320,0.0354,21199.0,21198.0,1.04560796]
[1674038744996,0.2054,21199.0,21198.0,1.04560796]
[1674038746779,0.2054,21199.0,21198.0,1.26810796]
[1674038747032,0.2054,21199.0,21198.0,1.59740696]
[1674038748171,0.2054,21199.0,21198.0,1.59734696]
[1674038748444,0.2054,21199.0,21198.0,1.37484696]
[1674038748707,0.2054,21199.0,21198.0,1.04554796]
[1674038753209,0.2054,21199.0,21198.0,1.15694796]
[1674038753709,0.2054,21199.0,21198.0,1.47543896]
[1674038755024,0.47920099,21199.0,21198.0,0.27380596]
[1674038755293,0.89946099,21199.0,21198.0,0.27380596]
[1674038755555,0.89946099,21199.0,21198.0,0.003]
[1674038755811,0.89946099,21199.0,21197.0,0.68391972]
[1674038756085,0.340676,21198.0,21197.0,0.68391972]
[1674038756350,0.340676,21198.0,21196.0,0.471786]
[1674038756621,0.93969739,21199.0,21196.0,0.471786]
[1674038756622,0.336262,21197.0,21196.0,0.471786]
[1674038757121,0.30638,21197.0,21196.0,0.471786]
[1674038757420,0.90829739,21199.0,21197.0,0.029]
[1674038757669,0.311343,21198.0,21195.0,0.48525855]
[1674038757938,0.349281,21197.0,21196.0,0.800766]
[1674038758205,0.349281,21197.0,21196.0,1.272535]
[1674038758206,0.006,21197.0,21196.0,1.272535]
[1674038758744,0.17,21199.0,21196.0,1.243535]
[1674038759001,0.006,21198.0,21197.0,0.3]
[1674038759258,0.006,21198.0,21197.0,1.243528]
[1674038759770,0.17,21199.0,21197.0,1.243528]
[1674038760064,0.176,21199.0,21197.0,1.243528]
[1674038760318,0.17,21199.0,21197.0,1.2601145]
[1674038760578,0.004,21198.0,21197.0,1.4005145]
[1674038761084,0.004,21198.0,21197.0,1.7298345]
[1674038761628,0.004,21198.0,21197.0,1.7008345]
[1674038761629,0.17,21199.0,21197.0,1.7008345]
[1674038761891,0.17,21199.0,21197.0,1.48443251]
[1674038762153,0.004,21198.0,21197.0,1.4005145]
[1674038762410,0.17,21199.0,21197.0,1.3715145]
[1674038763157,0.174,21199.0,21197.0,1.0565013]
[1674038763419,0.174,21199.0,21197.0,0.9891145]
[1674038765995,0.174,21199.0,21198.0,0.3]
[1674038766262,0.174,21199.0,21198.0,1.243484]
[1674038768076,0.17,21199.0,21198.0,1.243484]
[1674038768077,0.209,21199.0,21198.0,1.246484]
[1674038769655,0.209,21199.0,21198.0,2.1930556]
[1674038771209,0.17,21199.0,21198.0,2.1900556]
[1674038771463,0.175,21199.0,21198.0,2.2230556]
[1674038771740,0.15249472,21199.0,21198.0,1.907457]
[1674038771977,0.15749472,21199.0,21198.0,2.22292781]
[1674038772235,0.15249472,21199.0,21198.0,2.18992781]
[1674038772483,0.15749472,21199.0,21198.0,2.22292781]
[1674038773334,0.15749472,21199.0,21198.0,2.44883739]
[1674038773584,0.15749472,21199.0,21198.0,2.16636658]
[1674038774929,0.15079472,21199.0,21198.0,2.16636658]
[1674038775193,0.14409472,21199.0,21198.0,2.16636658]
[1674038775986,0.005,21199.0,21198.0,2.85023207]
[1674038775989,0.005,21199.0,21198.0,3.13252316]
[1674038776244,0.005,21199.0,21198.0,2.69071566]
[1674038776763,0.005,21199.0,21198.0,2.41890207]
[1674038777097,0.00283057,21202.0,21199.0,0.15]
[1674038777281,0.00283057,21202.0,21201.0,0.37418996]
[1674038777533,0.00283057,21202.0,21201.0,1.94586196]
[1674038777774,0.00283057,21202.0,21201.0,1.85498889]
[1674038778285,0.00283057,21202.0,21201.0,1.70498889]
[1674038778556,0.00783057,21202.0,21201.0,1.74298889]
[1674038782631,0.00783057,21202.0,21201.0,1.63168889]
[1674038782851,0.00783057,21202.0,21201.0,1.74450883]
[1674038783354,0.00783057,21202.0,21201.0,1.63168889]
[1674038784391,0.00783057,21202.0,21201.0,1.74447736]
[1674038784727,0.00783057,21202.0,21201.0,1.63168889]
[1674038785448,0.00783057,21202.0,21201.0,1.74445909]
[1674038785704,0.00783057,21202.0,21201.0,1.63168889]
[1674038786208,0.14783057,21202.0,21201.0,1.63168889]
[1674038790384,0.14783057,21202.0,21201.0,1.74441709]
[1674038791398,0.14783057,21202.0,21201.0,1.91347965]
[1674038792681,0.13304752,21202.0,21201.0,2.23015397]
[1674038793745,0.13304752,21202.0,21201.0,1.89526968]
[1674038794489,0.13304752,21202.0,21201.0,2.12062691]
[1674038794746,0.13304752,21202.0,21201.0,1.89526968]
[1674038795514,0.13304752,21202.0,21201.0,2.30012074]
[1674038795766,0.13304752,21202.0,21201.0,2.30012151]
[1674038796024,0.13304752,21202.0,21201.0,2.13109968]
[1674038796323,0.13304752,21202.0,21201.0,2.30012036]
[1674038796533,0.13304752,21202.0,21201.0,2.17697409]
[1674038796794,0.13304752,21202.0,21201.0,2.11658594]
[1674038797045,0.13304752,21202.0,21201.0,2.00390239]
[1674038797292,0.13304752,21202.0,21201.0,2.11657999]
[1674038797554,0.13304752,21202.0,21201.0,2.34203714]
[1674038798097,0.00274684,21203.0,21201.0,1.89526968]
[1674038798366,0.00274684,21203.0,21202.0,0.64642889]
[1674038798630,0.00274684,21203.0,21202.0,1.90052189]
[1674038798927,0.00274684,21203.0,21202.0,2.06961327]
[1674038799183,0.00274684,21203.0,21202.0,1.787793]
[1674038799444,0.00274684,21203.0,21202.0,2.06506928]
[1674038799709,0.00674684,21203.0,21202.0,1.99591246]
[1674038800472,0.00674684,21203.0,21202.0,1.826793]
[1674038800479,0.00674684,21203.0,21202.0,1.99591246]
[1674038800739,0.00674684,21203.0,21202.0,2.10405683]
[1674038800983,0.00674684,21203.0,21202.0,2.21220339]
[1674038801240,0.00674684,21203.0,21202.0,1.826793]
[1674038804173,0.00674684,21203.0,21202.0,2.10403861]
[1674038804714,0.00674684,21203.0,21202.0,1.826793]
[1674038805230,0.00674684,21203.0,21202.0,2.05238306]
[1674038806287,0.00674684,21203.0,21202.0,2.33450517]
[1674038807027,0.00674684,21203.0,21202.0,1.751593]
[1674038807282,0.00674684,21203.0,21202.0,2.03371121]
[1674038807799,0.00674684,21203.0,21202.0,1.92086593]
[1674038808110,0.00674684,21203.0,21202.0,2.25941574]
[1674038809067,0.00674684,21203.0,21202.0,1.751593]
[1674038809818,0.00674684,21203.0,21202.0,2.03391537]
[1674038810327,0.00674684,21203.0,21202.0,1.751593]
[1674038810599,0.00674684,21203.0,21202.0,1.92101086]
[1674038810845,0.00674684,21203.0,21202.0,1.77101086]
[1674038811100,0.00674684,21203.0,21202.0,1.301593]
[1674038811356,0.00674684,21203.0,21202.0,1.16024172]
[1674038811611,0.00674684,21203.0,21202.0,0.990806]
[1674038811911,0.00674684,21203.0,21202.0,1.05727476]
[1674038812122,0.00674684,21203.0,21202.0,1.22671048]
[1674038812383,0.00674684,21203.0,21202.0,1.22671926]
[1674038812630,0.00674684,21203.0,21202.0,1.52671926]
[1674038813402,0.00674684,21203.0,21202.0,1.290806]
[1674038813656,0.00674684,21203.0,21202.0,1.40378004]
[1674038813921,0.00674684,21203.0,21202.0,1.290806]
[1674038814476,0.00674684,21203.0,21202.0,1.5168029]
[1674038814707,0.00674684,21203.0,21202.0,1.8460289]
[1674038814976,0.00674684,21203.0,21202.0,2.12851816]
[1674038815499,0.00674684,21203.0,21202.0,1.90252126]
[1674038816582,0.00674684,21203.0,21202.0,1.620032]
[1674038817389,0.00667246,21203.0,21202.0,1.620032]
[1674038819513,0.00667246,21203.0,21202.0,1.9025969]
[1674038819824,0.00667246,21203.0,21202.0,1.620032]
[1674038821427,0.00267246,21203.0,21202.0,1.581032]
[1674038821957,0.00267246,21203.0,21202.0,1.696032]
[1674038822497,0.00267246,21203.0,21202.0,1.97863617]
[1674038824353,0.00267246,21203.0,21202.0,1.696032]
[1674038832647,0.00267246,21203.0,21202.0,2.03530061]
[1674038833078,0.00267246,21203.0,21202.0,1.696032]
[1674038833334,0.00267246,21203.0,21202.0,1.806732]
[1674038834601,0.00267246,21203.0,21202.0,1.917232]
[1674038835126,0.00267246,21203.0,21202.0,2.25645461]
[1674038835625,0.00267246,21203.0,21202.0,1.917232]
[1674038835889,0.00267246,21203.0,21202.0,2.25641517]
[1674038836937,4.6e-07,21203.0,21202.0,2.25641517]
[1674038838793,0.13000046,21203.0,21202.0,2.25641517]
[1674038839049,0.13000046,21203.0,21202.0,1.917232]
[1674038839838,0.13000046,21203.0,21202.0,1.70808908]
[1674038841988,0.13000046,21203.0,21202.0,1.71658908]
[1674038845502,0.13000046,21203.0,21202.0,1.25924186]
[1674038846055,0.13000046,21203.0,21202.0,1.20274046]
[1674038846852,0.13000046,21203.0,21202.0,1.50274046]
[1674038847119,0.13000046,21203.0,21202.0,1.67229656]
[1674038848388,0.13000046,21203.0,21202.0,1.78534287]
[1674038849147,0.13000046,21203.0,21202.0,1.27666308]
[1674038850434,0.13000046,21203.0,21202.0,1.5592354]
[1674038852246,0.13000046,21203.0,21202.0,1.27666308]
[1674038852581,0.13000046,21203.0,21202.0,1.5592354]
[1674038853295,0.13000046,21203.0,21202.0,1.4487354]
[1674038854606,0.13000046,21203.0,21202.0,1.16616308]
[1674038862208,0.13000046,21203.0,21202.0,1.44877077]
[1674038864000,0.12989576,21203.0,21202.0,1.44877077]
[1674038865013,0.12989576,21203.0,21202.0,1.67485759]
[1674038865597,0.12989576,21203.0,21202.0,1.44877077]
[1674038867148,0.12989576,21203.0,21202.0,1.16616308]
[1674038870449,0.12989576,21203.0,21202.0,1.4487632]
[1674038872794,0.12989576,21203.0,21202.0,1.67484436]
[1674038873058,0.12989576,21203.0,21202.0,1.16616308]
[1674038874868,0.12989576,21203.0,21202.0,1.1660468]
[1674038875410,0.12989576,21203.0,21202.0,1.44866571]
[1674038875692,0.12989576,21203.0,21202.0,1.44867394]
[1674038875943,0.12989576,21203.0,21202.0,1.1660468]
[1674038876199,0.12989576,21203.0,21202.0,1.4486751]
[1674038876469,0.12989576,21203.0,21202.0,1.1660468]
[1674038876729,0.12989576,21203.0,21202.0,1.3160468]
[1674038876990,0.12989576,21203.0,21202.0,1.1660468]
[1674038878917,0.12989576,21203.0,21202.0,1.44870602]
[1674038879987,0.12989576,21203.0,21202.0,1.1660468]
[1674038882291,0.12989576,21203.0,21202.0,1.3160468]
[1674038882593,0.12989576,21203.0,21202.0,1.50516181]
[1674038882830,0.12989576,21203.0,21202.0,1.1660468]
[1674038883344,0.12989576,21203.0,21202.0,1.25799498]
[1674038883601,0.12989576,21203.0,21202.0,0.91887997]
[1674038883875,0.12989576,21203.0,21202.0,1.25799498]
[1674038884156,0.12989576,21203.0,21202.0,0.91887997]
[1674038885268,0.00386624,21204.0,21202.0,0.91887997]
[1674038885537,0.00386624,21204.0,21203.0,0.65426209]
[1674038885782,0.00386624,21204.0,21203.0,1.59752409]
[1674038887015,0.00486624,21204.0,21203.0,1.6765208]
[1674038887278,0.00486624,21204.0,21203.0,1.67652217]
[1674038888594,0.00486624,21204.0,21203.0,1.60275684]
[1674038889389,0.00486624,21204.0,21203.0,1.4896761]
[1674038889648,0.00486624,21204.0,21203.0,1.60275684]
[1674038889912,0.00486624,21204.0,21203.0,1.61999291]
[1674038890175,0.00486624,21204.0,21203.0,1.90275684]
[1674038890740,0.00486624,21204.0,21203.0,1.61999291]
[1674038891014,0.10572624,21204.0,21203.0,1.78967829]
[1674038891270,0.10572624,21204.0,21203.0,1.13538953]
[1674038891271,1.44554753,21204.0,21203.0,1.13538953]
[1674038891531,1.44554753,21204.0,21203.0,1.022262]
[1674038891532,1.09450027,21204.0,21203.0,1.022262]
[1674038892353,1.09450027,21204.0,21203.0,0.079]
[1674038893142,0.99928653,21204.0,21203.0,0.550631]
[1674038894213,0.99928653,21204.0,21203.0,0.079]
[1674038894214,2.12953379,21204.0,21203.0,0.079]
[1674038895227,2.12853379,21204.0,21202.0,0.24]
[1674038895483,2.12853379,21204.0,21203.0,0.003]
[1674038895484,1.14784653,21204.0,21203.0,0.003]
[1674038895780,2.59249466,21204.0,21203.0,0.003]
[1674038896010,2.59079466,21204.0,21203.0,0.003]
[1674038896533,2.2197474,21204.0,21202.0,0.24]
[1674038896790,1.01498626,21203.0,21202.0,0.24]
[1674038897604,1.01498626,21203.0,21202.0,0.259]
[1674038897859,1.01498626,21203.0,21202.0,0.24]
[1674038898118,1.01498626,21203.0,21202.0,0.259]
[1674038901237,1.24759995,21203.0,21202.0,0.259]
[1674038903030,2.22991469,21203.0,21202.0,0.259]
[1674038904066,2.70154569,21203.0,21202.0,0.259]
[1674038905347,1.997301,21203.0,21202.0,0.44972595]
[1674038905619,1.997301,21203.0,21202.0,0.259]
[1674038905620,1.220001,21203.0,21202.0,0.259]
[1674038905879,0.88831876,21203.0,21202.0,0.259]
[1674038906186,1.23936602,21203.0,21202.0,0.259]
[1674038906459,0.88831876,21203.0,21202.0,0.259]
[1674038906713,0.77701876,21203.0,21202.0,0.730653]
[1674038909554,0.77701876,21203.0,21202.0,0.259]
[1674038910151,0.77701876,21203.0,21202.0,0.730653]
[1674038911103,0.77701876,21203.0,21202.0,0.259]
[1674038912141,0.77701876,21203.0,21202.0,0.730653]
[1674038912669,0.77701876,21203.0,21202.0,1.202306]
[1674038912934,0.77701876,21203.0,21202.0,0.730653]
[1674038916191,0.77701876,21203.0,21202.0,1.030653]
[1674038917772,0.77701876,21203.0,21202.0,0.730653]
[1674038918570,0.65142234,21203.0,21202.0,0.730653]
[1674038919412,0.65142234,21203.0,21202.0,0.259]
[1674038921836,1.00197156,21203.0,21202.0,0.259]
[1674038922104,0.65142234,21203.0,21202.0,0.259]
[1674038923155,0.76272234,21203.0,21202.0,0.259]
[1674038927311,0.65142234,21203.0,21202.0,0.259]
[1674038929101,1.00197156,21203.0,21202.0,0.259]
[1674038930141,0.65142234,21203.0,21202.0,0.259]
[1674038930668,1.00197156,21203.0,21202.0,0.259]
[1674038932268,0.65142234,21203.0,21202.0,0.259]
[1674038933257,0.54092234,21203.0,21202.0,0.259]
[1674038940590,0.33547976,21203.0,21202.0,0.259]
[1674038940837,0.64678776,21203.0,21202.0,0.259]
[1674038941595,0.64678776,21203.0,21202.0,0.730653]
[1674038942671,0.62742274,21203.0,21202.0,0.730653]
[1674038944670,0.311308,21203.0,21202.0,0.730653]
[1674038945198,0.311308,21203.0,21202.0,1.030653]
[1674038945458,0.00386624,21204.0,21202.0,1.030653]
[1674038945712,0.32593,21203.0,21202.0,1.030653]
[1674038945977,0.00386624,21204.0,21202.0,1.030653]
[1674038946247,0.323882,21203.0,21202.0,1.030653]
[1674038946762,0.32329,21203.0,21202.0,1.030653]
[1674038947013,0.00386624,21204.0,21202.0,1.502306]
[1674038947572,0.320142,21203.0,21202.0,1.202306]
[1674038947845,0.33950315,21203.0,21202.0,1.502306]
[1674038948095,0.01936115,21203.0,21202.0,1.502306]
[1674038948410,0.01936115,21203.0,21202.0,1.483306]
[1674038948650,0.01936115,21203.0,21202.0,1.202306]
[1674038948951,0.01925165,21203.0,21202.0,1.483306]
[1674038949217,0.01925165,21203.0,21202.0,1.502306]
[1674038953563,0.01925165,21203.0,21202.0,1.510806]
[1674038954124,0.01925165,21203.0,21202.0,1.84653353]
[1674038954376,0.01925165,21203.0,21202.0,2.16505853]
[1674038954621,0.01925165,21203.0,21202.0,1.85997654]
[1674038954879,0.01925165,21203.0,21202.0,2.18387454]
[1674038955440,0.01925165,21203.0,21202.0,1.74684901]
[1674038958320,0.01925165,21203.0,21202.0,1.52424901]
[1674038960929,0.01925165,21203.0,21202.0,1.85937654]
[1674038961397,0.01925165,21203.0,21202.0,2.31217877]
[1674038961649,0.01925165,21203.0,21202.0,2.53841344]
[1674038962921,0.01925165,21203.0,21202.0,2.31217877]
[1674038963944,0.01925165,21203.0,21202.0,2.35353449]
[1674038964491,0.01925165,21203.0,21202.0,1.85918711]
[1674038965190,0.01925165,21203.0,21202.0,2.10000782]
[1674038965440,0.01925165,21203.0,21202.0,2.31616472]
[1674038966458,0.01925165,21203.0,21202.0,2.4290712]
[1674038966970,0.01925165,21203.0,21202.0,2.18825043]
[1674038967251,0.01925165,21203.0,21202.0,1.85915543]
[1674038967470,0.01925165,21203.0,21202.0,2.18965143]
[1674038968764,0.01925165,21203.0,21202.0,2.35933681]
[1674038969016,0.01925165,21203.0,21202.0,2.18965143]
[1674038969566,0.01925165,21203.0,21202.0,1.85915543]
[1674038970016,0.01925165,21203.0,21202.0,2.35273481]
[1674038970273,0.01925165,21203.0,21202.0,2.42306784]
[1674038970539,0.01925165,21203.0,21202.0,2.35273481]
[1674038970799,0.01914121,21203.0,21202.0,2.35273481]
[1674038971835,0.01914121,21203.0,21202.0,2.42306023]
[1674038972135,0.01914121,21203.0,21202.0,2.31015381]
[1674038972845,0.01914121,21203.0,21202.0,2.42305373]
[1674038973097,0.01914121,21203.0,21202.0,2.18304293]
[1674038973654,0.01914121,21203.0,21202.0,2.35272831]
[1674038974368,0.01914121,21203.0,21202.0,2.42304103]
[1674038975170,0.01914121,21203.0,21202.0,2.32305239]
[1674038975435,0.01914121,21203.0,21202.0,2.2666904]
[1674038976254,0.01914121,21203.0,21202.0,2.54945433]
[1674038976513,0.01914121,21203.0,21202.0,2.38757573]
[1674038976795,0.01914121,21203.0,21202.0,3.33743649]
[1674038977050,0.01914121,21203.0,21202.0,3.33743518]
[1674038977588,0.01914121,21203.0,21202.0,3.08261518]
[1674038978100,0.01914121,21203.0,21202.0,3.17261518]
[1674038979433,0.01914121,21203.0,21202.0,3.08261518]
[1674038979683,0.01914121,21203.0,21202.0,3.17361518]
[1674038981802,0.01914121,21203.0,21202.0,3.39939498]
[1674038982067,0.01914121,21203.0,21202.0,3.39939534]
[1674038982356,0.01914121,21203.0,21202.0,3.17361518]
[1674038982647,0.01914121,21203.0,21202.0,3.39940489]
[1674038983174,0.01914121,21203.0,21202.0,3.17361518]
[1674038983433,0.01914121,21203.0,21202.0,3.39940338]
[1674038983681,0.01914121,21203.0,21202.0,3.17361518]
[1674038983967,0.01914121,21203.0,21202.0,3.39940477]
[1674038984233,0.01914121,21203.0,21202.0,3.17361518]
[1674038985536,0.01914121,21203.0,21202.0,2.4315384]
[1674038986554,0.00386624,21204.0,21202.0,2.4315384]
[1674038986826,0.00386624,21204.0,21203.0,0.75010904]
[1674038987059,0.00386624,21204.0,21203.0,1.99337104]
[1674038987318,0.00386624,21204.0,21203.0,1.88287104]
[1674038987563,0.00386624,21204.0,21203.0,2.10869426]
[1674038987861,0.00386624,21204.0,21203.0,1.88287104]
[1674038988078,0.00386624,21204.0,21203.0,2.10869426]
[1674038988325,0.00386624,21204.0,21203.0,2.19969426]
[1674038989396,0.00386624,21204.0,21203.0,1.97387104]
[1674038989650,0.00386624,21204.0,21203.0,2.19969426]
[1674038992182,0.00386624,21204.0,21203.0,2.03030494]
[1674038992416,0.00386624,21204.0,21203.0,2.31256439]
[1674038992991,0.00386624,21204.0,21203.0,2.19794117]
[1674038993248,0.00386624,21204.0,21203.0,2.42385557]
[1674038993502,0.00386624,21204.0,21203.0,2.19794117]
[1674038994015,0.00386624,21204.0,21203.0,1.91568172]
[1674038994301,0.00386624,21204.0,21203.0,2.19806598]
[1674038994537,0.00386624,21204.0,21203.0,1.91568172]
[1674038995044,0.003801,21204.0,21203.0,2.15149172]
[1674038997866,0.003801,21204.0,21203.0,1.91568172]